fUSD/lending_fUSD_20260621
["ID","MTS","AMOUNT","RATE_DAILY","PERIOD"]
[425932978,1782037883000,-824.86,0.00028767,2]
[425932983,1782037883000,-539.15,0.00028767,2]
[425932986,1782037883000,-155.05665557,0.00028767,2]
[425932981,1782037883000,-500.0,0.00028767,2]
[425932985,1782037883000,-819.6,0.00028767,2]
[425932987,1782037883000,-500.0,0.00028767,2]
[425932990,1782037883000,-500.0,0.00028767,2]
[425932989,1782037883000,-500.0,0.00028767,2]
[425932988,1782037883000,-500.0,0.00028767,2]
[425933037,1782037884000,-500.0,0.00028493,2]
[425933027,1782037884000,-500.0,0.00027945,2]
[425933028,1782037884000,-500.0,0.00027945,2]
[425933038,1782037884000,-500.0,0.00028493,2]
[425933026,1782037884000,-500.0,0.00027945,2]
[425933029,1782037884000,-500.0,0.00028219,2]
[425933030,1782037884000,-500.0,0.00028219,2]
[425933035,1782037884000,-500.0,0.00028492,2]
[425933031,1782037884000,-500.0,0.00028219,2]
[425933032,1782037884000,-462.98,0.00028418,30]
[425933034,1782037884000,-500.0,0.00028492,2]
[425933036,1782037884000,-500.0,0.00028493,2]
[425933039,1782037884000,-10374.28112679,0.00028767,2]
[425933041,1782037884000,-500.0,0.00028767,2]
[425933042,1782037884000,-500.0,0.00028767,2]
[425933025,1782037884000,-277.93784885,0.00027935,2]
[425933033,1782037884000,-277.93784885,0.00028483,2]
[425933024,1782037884000,-500.0,0.00027671,2]
[425933012,1782037884000,-849.72650239,0.00028767,2]
[425933023,1782037884000,-500.0,0.00027671,2]
[425933049,1782037884000,-500.0,0.00028767,2]
[425933005,1782037884000,-1005.31361793,0.00028767,2]
[425933006,1782037884000,-615.29519956,0.00028493,2]
[425933008,1782037884000,-245.08480044,0.00028493,2]
[425933007,1782037884000,-500.0,0.00028492,2]
[425933009,1782037884000,-4222.75264432,0.00028493,2]
[425933011,1782037884000,-120.97851181,0.00028493,2]
[425933014,1782037884000,-22.05215115,0.00027397,2]
[425933013,1782037884000,-277.93784885,0.00027362,2]
[425933010,1782037884000,-892.67884387,0.00028493,2]
[425933015,1782037884000,-477.94784885,0.00027397,2]
[425933017,1782037884000,-359.0802917,0.00027397,2]
[425933016,1782037884000,-140.9197083,0.00027397,2]
[425933018,1782037884000,-431.19649936,0.00027397,2]
[425933019,1782037884000,-68.80350064,0.00027397,2]
[425933020,1782037884000,-4138.07,0.00027397,10]
[425933021,1782037884000,-500.0,0.00027671,2]
[425933022,1782037884000,-500.0,0.00027671,2]
[425933044,1782037884000,-500.0,0.00028767,2]
[425933064,1782037884000,-500.0,0.00028767,2]
[425933050,1782037884000,-500.0,0.00028767,2]
[425933069,1782037884000,-500.0,0.00028767,2]
[425933066,1782037884000,-760.72,0.00028767,2]
[425933070,1782037884000,-791.91,0.00028767,2]
[425933072,1782037884000,-500.0,0.00028767,2]
[425933068,1782037884000,-500.0,0.00028767,2]
[425933067,1782037884000,-500.0,0.00028767,2]
[425933071,1782037884000,-869.83,0.00028767,2]
[425933075,1782037884000,-500.0,0.00028767,2]
[425933074,1782037884000,-1398.44,0.00028767,2]
[425933076,1782037884000,-500.0,0.00028767,2]
[425933078,1782037884000,-500.0,0.00028767,2]
[425933077,1782037884000,-515.73,0.00028767,2]
[425933081,1782037884000,-500.0,0.00028767,2]
[425933079,1782037884000,-617.68863685,0.00028767,2]
[425933083,1782037884000,-500.0,0.00028767,2]
[425933082,1782037884000,-2010.0,0.00028767,2]
[425933040,1782037884000,-1325.61,0.00028767,2]
[425933065,1782037884000,-500.0,0.00028767,2]
[425933080,1782037884000,-3841.84,0.00028767,2]
[425933084,1782037884000,-500.0,0.00028767,2]
[425933062,1782037884000,-500.0,0.00028767,2]
[425933063,1782037884000,-500.0,0.00028767,2]
[425933043,1782037884000,-500.0,0.00028767,2]
[425933045,1782037884000,-500.0,0.00028767,2]
[425933048,1782037884000,-383.51892082,0.00028767,2]
[425933046,1782037884000,-500.0,0.00028767,2]
[425933052,1782037884000,-500.0,0.00028767,2]
[425933051,1782037884000,-836.69,0.00028767,2]
[425933053,1782037884000,-500.0,0.00028767,2]
[425933057,1782037884000,-500.0,0.00028767,2]
[425933047,1782037884000,-592.99,0.00028767,2]
[425933060,1782037884000,-500.0,0.00028767,2]
[425933055,1782037884000,-500.0,0.00028767,2]
[425933054,1782037884000,-590.33,0.00028767,2]
[425933056,1782037884000,-500.0,0.00028767,2]
[425933059,1782037884000,-500.0,0.00028767,2]
[425933061,1782037884000,-500.0,0.00028767,2]
[425933058,1782037884000,-500.0,0.00028767,2]
[425933073,1782037884000,-500.0,0.00028767,2]
[425933113,1782037885000,-500.0,0.00028767,2]
[425933117,1782037885000,-500.0,0.00028767,2]
[425933111,1782037885000,-489.96677777,0.00028767,2]
[425933110,1782037885000,-500.0,0.00028767,2]
[425933109,1782037885000,-500.0,0.00028767,2]
[425933116,1782037885000,-500.0,0.00028767,2]
[425933115,1782037885000,-608.71,0.00028767,2]
[425933120,1782037885000,-606.08,0.00028767,2]
[425933114,1782037885000,-500.0,0.00028767,2]
[425933118,1782037885000,-853.67,0.00028767,2]
[425933130,1782037885000,-475.71626045,0.00028767,2]
[425933121,1782037885000,-584.87,0.00028767,2]
[425933124,1782037885000,-500.0,0.00028767,2]
[425933123,1782037885000,-500.0,0.00028767,2]
[425933127,1782037885000,-500.0,0.00028767,2]
[425933126,1782037885000,-4952.69,0.00028767,2]
[425933119,1782037885000,-6740.75,0.00028767,2]
[425933128,1782037885000,-863.82,0.00028767,2]
[425933129,1782037885000,-736.37,0.00028767,2]
[425933108,1782037885000,-1205.38,0.00028767,2]
[425933122,1782037885000,-4370.8,0.00028767,2]
[425933112,1782037885000,-500.0,0.00028767,2]
[425933087,1782037885000,-500.0,0.00028767,2]
[425933104,1782037885000,-958.6,0.00028767,2]
[425933085,1782037885000,-2086.7,0.00028767,2]
[425933093,1782037885000,-1744.77,0.00028767,2]
[425933088,1782037885000,-3292.77,0.00028767,2]
[425933131,1782037885000,-500.0,0.00028767,2]
[425933090,1782037885000,-500.0,0.00028767,2]
[425933086,1782037885000,-500.0,0.00028767,2]
[425933095,1782037885000,-189.18648515,0.00028767,2]
[425933089,1782037885000,-500.0,0.00028767,2]
[425933094,1782037885000,-5206.76,0.00028767,2]
[425933092,1782037885000,-500.0,0.00028767,2]
[425933096,1782037885000,-757.98,0.00028767,2]
[425933091,1782037885000,-4255.92,0.00028767,2]
[425933098,1782037885000,-1345.44,0.00028767,2]
[425933097,1782037885000,-500.0,0.00028767,2]
[425933099,1782037885000,-500.0,0.00028767,2]
[425933101,1782037885000,-500.0,0.00028767,2]
[425933103,1782037885000,-500.0,0.00028767,2]
[425933100,1782037885000,-500.0,0.00028767,2]
[425933102,1782037885000,-1000.0,0.00028767,2]
[425933106,1782037885000,-500.0,0.00028767,2]
[425933105,1782037885000,-500.0,0.00028767,2]
[425933107,1782037885000,-500.0,0.00028767,2]
[425933132,1782037885000,-500.0,0.00028767,2]
[425933125,1782037885000,-500.0,0.00028767,2]
[425933134,1782037885000,-500.0,0.00028767,2]
[425933159,1782037885000,-500.0,0.00028767,2]
[425933170,1782037885000,-500.0,0.00028767,2]
[425933162,1782037885000,-500.0,0.00028767,2]
[425933171,1782037885000,-500.0,0.00028767,2]
[425933164,1782037885000,-6334.76,0.00028767,2]
[425933163,1782037885000,-500.0,0.00028767,2]
[425933161,1782037885000,-6679.24,0.00028767,2]
[425933168,1782037885000,-6938.43,0.00028767,2]
[425933167,1782037885000,-500.0,0.00028767,2]
[425933172,1782037885000,-1204.631058,0.00028767,7]
[425933160,1782037885000,-896.49,0.00028767,2]
[425933166,1782037885000,-500.0,0.00028767,2]
[425933173,1782037885000,-746.08,0.00028767,2]
[425933174,1782037885000,-5735.18,0.00028767,2]
[425933177,1782037885000,-4885.48,0.00028767,2]
[425933176,1782037885000,-2630.75,0.00028767,2]
[425933180,1782037885000,-8907.33,0.00028767,2]
[425933178,1782037885000,-1204.631058,0.00028767,7]
[425933179,1782037885000,-560.49,0.00028767,2]
[425933181,1782037885000,-500.0,0.00028767,2]
[425933138,1782037885000,-500.0,0.00028767,2]
[425933175,1782037885000,-1204.631058,0.00028767,7]
[425933165,1782037885000,-500.0,0.00028767,2]
[425933158,1782037885000,-500.0,0.00028767,2]
[425933169,1782037885000,-1204.631058,0.00028767,7]
[425933157,1782037885000,-9364.89,0.00028767,2]
[425933135,1782037885000,-500.0,0.00028767,2]
[425933154,1782037885000,-500.0,0.00028767,2]
[425933139,1782037885000,-3874.02,0.00028767,2]
[425933136,1782037885000,-500.0,0.00028767,2]
[425933137,1782037885000,-500.0,0.00028767,2]
[425933140,1782037885000,-500.0,0.00028767,2]
[425933143,1782037885000,-500.0,0.00028767,2]
[425933145,1782037885000,-509.56,0.00028767,2]
[425933146,1782037885000,-747.29,0.00028767,2]
[425933141,1782037885000,-500.0,0.00028767,2]
[425933142,1782037885000,-500.0,0.00028767,2]
[425933133,1782037885000,-469.44007265,0.00028767,2]
[425933149,1782037885000,-500.0,0.00028767,2]
[425933144,1782037885000,-254.35337087,0.00028767,2]
[425933147,1782037885000,-3344.59,0.00028767,2]
[425933152,1782037885000,-500.0,0.00028767,2]
[425933150,1782037885000,-606.62,0.00028767,2]
[425933153,1782037885000,-690.61,0.00028767,2]
[425933156,1782037885000,-5030.0,0.00028767,2]
[425933148,1782037885000,-6285.21,0.00028767,2]
[425933151,1782037885000,-6091.66,0.00028767,2]
[425933155,1782037885000,-500.0,0.00028767,2]
[425933227,1782037886000,-500.0,0.00028767,2]
[425933221,1782037886000,-1479.66,0.00028767,2]
[425933233,1782037886000,-290.14602434,0.00028767,2]
[425933222,1782037886000,-500.0,0.00028767,2]
[425933218,1782037886000,-500.0,0.00028767,2]
[425933219,1782037886000,-4485.52,0.00028767,2]
[425933209,1782037886000,-500.0,0.00028767,2]
[425933212,1782037886000,-500.0,0.00028767,2]
[425933225,1782037886000,-500.0,0.00028767,2]
[425933220,1782037886000,-475.79652677,0.00028767,2]
[425933217,1782037886000,-500.0,0.00028767,2]
[425933214,1782037886000,-9999.22,0.00028767,2]
[425933240,1782037886000,-611.44,0.00028767,2]
[425933226,1782037886000,-500.0,0.00028767,2]
[425933223,1782037886000,-730.93,0.00028767,2]
[425933224,1782037886000,-500.0,0.00028767,2]
[425933232,1782037886000,-3337.66,0.00028767,2]
[425933231,1782037886000,-5736.86,0.00028767,2]
[425933230,1782037886000,-500.0,0.00028767,2]
[425933236,1782037886000,-7741.98,0.00028767,2]
[425933237,1782037886000,-7069.12,0.00028767,2]
[425933234,1782037886000,-9276.24,0.00028767,2]
[425933235,1782037886000,-656.66,0.00028767,2]
[425933243,1782037886000,-8742.6,0.00028767,2]
[425933238,1782037886000,-500.0,0.00028767,2]
[425933215,1782037886000,-5836.17,0.00028767,2]
[425933229,1782037886000,-869.85,0.00028767,2]
[425933216,1782037886000,-500.0,0.00028767,2]
[425933190,1782037886000,-10443.29,0.00028767,2]
[425933211,1782037886000,-1073.5,0.00028767,2]
[425933244,1782037886000,-500.0,0.00028767,2]
[425933182,1782037886000,-7097.95,0.00028767,2]
[425933183,1782037886000,-10103.93,0.00028767,2]
[425933184,1782037886000,-500.0,0.00028767,2]
[425933185,1782037886000,-662.83,0.00028767,2]
[425933186,1782037886000,-13019.17,0.00028767,2]
[425933188,1782037886000,-500.0,0.00028767,2]
[425933187,1782037886000,-500.0,0.00028767,2]
[425933192,1782037886000,-1115.01,0.00028767,2]
[425933189,1782037886000,-1501.04,0.00028767,2]
[425933191,1782037886000,-8253.82,0.00028767,2]
[425933194,1782037886000,-500.0,0.00028767,2]
[425933193,1782037886000,-4071.99,0.00028767,2]
[425933213,1782037886000,-1451.53,0.00028767,2]
[425933196,1782037886000,-500.0,0.00028767,2]
[425933195,1782037886000,-475.75005761,0.00028767,2]
[425933198,1782037886000,-500.0,0.00028767,2]
[425933206,1782037886000,-1301.74,0.00028767,2]
[425933197,1782037886000,-4656.76,0.00028767,2]
[425933200,1782037886000,-523.3,0.00028767,2]
[425933202,1782037886000,-9528.18,0.00028767,2]
[425933201,1782037886000,-500.0,0.00028767,2]
[425933199,1782037886000,-500.0,0.00028767,2]
[425933203,1782037886000,-1180.04,0.00028767,2]
[425933204,1782037886000,-7163.35,0.00028767,2]
[425933205,1782037886000,-500.0,0.00028767,2]
[425933210,1782037886000,-922.78,0.00028767,2]
[425933208,1782037886000,-3935.77,0.00028767,2]
[425933207,1782037886000,-500.0,0.00028767,2]
[425933241,1782037886000,-549.8908291,0.00028767,2]
[425933228,1782037886000,-500.0,0.00028767,2]
[425933242,1782037886000,-500.0,0.00028767,2]
[425933274,1782037886000,-500.0,0.00028767,2]
[425933273,1782037886000,-650.62,0.00028767,2]
[425933270,1782037886000,-500.0,0.00028767,2]
[425933278,1782037886000,-500.0,0.00028767,2]
[425933272,1782037886000,-500.0,0.00028767,2]
[425933276,1782037886000,-500.0,0.00028767,2]
[425933277,1782037886000,-1025.47,0.00028767,2]
[425933284,1782037886000,-8068.87,0.00028767,2]
[425933287,1782037886000,-419.0295341,0.00028767,2]
[425933286,1782037886000,-500.0,0.00028767,2]
[425933295,1782037886000,-500.0,0.00028767,2]
[425933288,1782037886000,-4316.99,0.00028767,2]
[425933290,1782037886000,-682.33,0.00028767,2]
[425933275,1782037886000,-582.18,0.00028767,2]
[425933294,1782037886000,-402.36812343,0.00028767,2]
[425933292,1782037886000,-4989.66,0.00028767,2]
[425933293,1782037886000,-6422.86,0.00028767,2]
[425933289,1782037886000,-500.0,0.00028767,2]
[425933296,1782037886000,-500.0,0.00028767,2]
[425933291,1782037886000,-500.0,0.00028767,2]
[425933298,1782037886000,-4065.24,0.00028767,2]
[425933297,1782037886000,-2112.512751,0.00028767,7]
[425933299,1782037886000,-2112.512751,0.00028767,7]
[425933301,1782037886000,-500.0,0.00028767,2]
[425933300,1782037886000,-500.0,0.00028767,2]
[425933239,1782037886000,-500.0,0.00028767,2]
[425933304,1782037886000,-500.0,0.00028767,2]
[425933302,1782037886000,-2112.512751,0.00028767,7]
[425933285,1782037886000,-526.21,0.00028767,2]
[425933281,1782037886000,-500.0,0.00028767,2]
[425933303,1782037886000,-2112.512751,0.00028767,7]
[425933280,1782037886000,-500.0,0.00028767,2]
[425933282,1782037886000,-500.0,0.00028767,2]
[425933256,1782037886000,-3846.12,0.00028767,2]
[425933257,1782037886000,-500.0,0.00028767,2]
[425933247,1782037886000,-831.38,0.00028767,2]
[425933250,1782037886000,-798.82,0.00028767,2]
[425933251,1782037886000,-500.0,0.00028767,2]
[425933248,1782037886000,-521.32,0.00028767,2]
[425933245,1782037886000,-4906.25,0.00028767,2]
[425933249,1782037886000,-500.0,0.00028767,2]
[425933253,1782037886000,-3382.74,0.00028767,2]
[425933254,1782037886000,-500.0,0.00028767,2]
[425933252,1782037886000,-500.0,0.00028767,2]
[425933255,1782037886000,-601.83556084,0.00028767,2]
[425933258,1782037886000,-500.0,0.00028767,2]
[425933246,1782037886000,-6319.14,0.00028767,2]
[425933261,1782037886000,-500.0,0.00028767,2]
[425933260,1782037886000,-6386.84,0.00028767,2]
[425933271,1782037886000,-500.0,0.00028767,2]
[425933264,1782037886000,-624.23,0.00028767,2]
[425933263,1782037886000,-8696.2,0.00028767,2]
[425933267,1782037886000,-4194.76,0.00028767,2]
[425933279,1782037886000,-3267.69,0.00028767,2]
[425933259,1782037886000,-1221.43,0.00028767,2]
[425933269,1782037886000,-10625.36,0.00028767,2]
[425933265,1782037886000,-500.0,0.00028767,2]
[425933283,1782037886000,-6815.25,0.00028767,2]
[425933266,1782037886000,-4404.74,0.00028767,2]
[425933262,1782037886000,-500.0,0.00028767,2]
[425933268,1782037886000,-578.26,0.00028767,2]
[425933332,1782037887000,-420.72,0.00028767,2]
[425933344,1782037887000,-407.47,0.00028798,2]
[425933335,1782037887000,-5236.41,0.00028767,2]
[425933337,1782037887000,-500.0,0.00028767,2]
[425933339,1782037887000,-410.0,0.00028767,2]
[425933338,1782037887000,-500.0,0.00028767,2]
[425933340,1782037887000,-187.4,0.00028785,2]
[425933343,1782037887000,-234.55,0.00028792,2]
[425933353,1782037887000,-303.0,0.00028868,30]
[425933342,1782037887000,-237.42,0.00028789,2]
[425933336,1782037887000,-500.0,0.00028767,2]
[425933349,1782037887000,-201.0,0.00028868,30]
[425933345,1782037887000,-510.0,0.00028842,3]
[425933347,1782037887000,-165.0,0.00028868,30]
[425933350,1782037887000,-337.0,0.00028868,30]
[425933348,1782037887000,-162.0,0.00028868,30]
[425933346,1782037887000,-151.0,0.00028868,30]
[425933352,1782037887000,-159.0,0.00028868,30]
[425933354,1782037887000,-154.0,0.0002887,30]
[425933356,1782037887000,-370.0,0.0002887,30]
[425933358,1782037887000,-160.0,0.0002887,30]
[425933359,1782037887000,-657.79550697,0.00028941,2]
[425933355,1782037887000,-157.0,0.0002887,30]
[425933333,1782037887000,-3061.09,0.00028767,2]
[425933351,1782037887000,-157.0,0.00028868,30]
[425933334,1782037887000,-860.38,0.00028767,2]
[425933318,1782037887000,-500.0,0.00028767,2]
[425933331,1782037887000,-2524.57,0.00028767,2]
[425933305,1782037887000,-1027.88,0.00028767,2]
[425933307,1782037887000,-500.0,0.00028767,2]
[425933306,1782037887000,-500.0,0.00028767,2]
[425933308,1782037887000,-500.0,0.00028767,2]
[425933310,1782037887000,-500.0,0.00028767,2]
[425933309,1782037887000,-1155.12,0.00028767,2]
[425933315,1782037887000,-500.0,0.00028767,2]
[425933313,1782037887000,-4040.17,0.00028767,2]
[425933312,1782037887000,-3597.01,0.00028767,2]
[425933311,1782037887000,-4764.69,0.00028767,2]
[425933316,1782037887000,-500.0,0.00028767,2]
[425933314,1782037887000,-239.43902978,0.00028767,2]
[425933317,1782037887000,-832.36,0.00028767,2]
[425933329,1782037887000,-4259.26,0.00028767,2]
[425933323,1782037887000,-942.63,0.00028767,2]
[425933324,1782037887000,-500.0,0.00028767,2]
[425933321,1782037887000,-500.0,0.00028767,2]
[425933319,1782037887000,-829.45,0.00028767,2]
[425933325,1782037887000,-500.0,0.00028767,2]
[425933320,1782037887000,-1696.94,0.00028767,2]
[425933327,1782037887000,-597.79,0.00028767,2]
[425933328,1782037887000,-508.83,0.00028767,2]
[425933322,1782037887000,-2636.35,0.00028767,2]
[425933326,1782037887000,-500.0,0.00028767,2]
[425933330,1782037887000,-500.0,0.00028767,2]
[425933341,1782037887000,-187.46,0.00028788,2]
[425933360,1782037887000,-187.4,0.00028978,30]
[425933363,1782037887000,-500.0,0.00028983,2]
[425933362,1782037887000,-237.42,0.00028982,30]
[425933391,1782037887000,-500.0,0.00029041,2]
[425933393,1782037887000,-500.0,0.00029041,2]
[425933395,1782037887000,-500.0,0.00029041,2]
[425933392,1782037887000,-773.81,0.00029041,2]
[425933396,1782037887000,-500.0,0.00029041,2]
[425933390,1782037887000,-500.0,0.0002904,2]
[425933394,1782037887000,-500.0,0.00029041,2]
[425933399,1782037887000,-500.0,0.00029041,2]
[425933401,1782037887000,-500.0,0.00029041,2]
[425933402,1782037887000,-500.0,0.00029041,2]
[425933407,1782037887000,-500.0,0.00029041,2]
[425933404,1782037887000,-500.0,0.00029041,2]
[425933400,1782037887000,-500.0,0.00029041,2]
[425933408,1782037887000,-500.0,0.00029041,2]
[425933406,1782037887000,-500.0,0.00029041,2]
[425933409,1782037887000,-500.0,0.00029041,2]
[425933405,1782037887000,-490.58608959,0.00029041,2]
[425933410,1782037887000,-500.0,0.00029041,2]
[425933411,1782037887000,-500.0,0.00029041,2]
[425933413,1782037887000,-500.0,0.00029041,2]
[425933416,1782037887000,-500.0,0.00029041,2]
[425933415,1782037887000,-500.0,0.00029041,2]
[425933414,1782037887000,-500.0,0.00029041,2]
[425933412,1782037887000,-500.0,0.00029041,2]
[425933357,1782037887000,-192.0,0.0002887,30]
[425933389,1782037887000,-3922.95,0.0002904,2]
[425933398,1782037887000,-500.0,0.00029041,2]
[425933403,1782037887000,-500.0,0.00029041,2]
[425933397,1782037887000,-500.0,0.00029041,2]
[425933388,1782037887000,-516.95,0.0002904,2]
[425933361,1782037887000,-187.46,0.0002898,30]
[425933366,1782037887000,-500.0,0.00028983,2]
[425933365,1782037887000,-500.0,0.00028983,2]
[425933375,1782037887000,-3766.43,0.0002904,2]
[425933369,1782037887000,-407.47,0.00028989,30]
[425933367,1782037887000,-411.55,0.00028983,2]
[425933374,1782037887000,-2151.96,0.0002904,2]
[425933371,1782037887000,-3431.96590456,0.00029,2]
[425933373,1782037887000,-644.98,0.0002904,2]
[425933370,1782037887000,-181.0,0.00029,7]
[425933368,1782037887000,-234.55,0.00028984,30]
[425933372,1782037887000,-277.0,0.00029,2]
[425933364,1782037887000,-500.0,0.00028983,2]
[425933386,1782037887000,-6020.43,0.0002904,2]
[425933378,1782037887000,-4510.31,0.0002904,2]
[425933385,1782037887000,-8988.97,0.0002904,2]
[425933381,1782037887000,-4096.63,0.0002904,2]
[425933382,1782037887000,-9938.39,0.0002904,2]
[425933379,1782037887000,-7986.83,0.0002904,2]
[425933384,1782037887000,-4086.22,0.0002904,2]
[425933383,1782037887000,-500.0,0.0002904,2]
[425933380,1782037887000,-698.7,0.0002904,2]
[425933376,1782037887000,-5328.39,0.0002904,2]
[425933377,1782037887000,-3324.04,0.0002904,2]
[425933387,1782037887000,-500.0,0.0002904,2]
[425933453,1782037888000,-570.4435564,0.00029041,2]
[425933456,1782037888000,-500.0,0.00029041,2]
[425933449,1782037888000,-500.0,0.00029041,2]
[425933448,1782037888000,-500.0,0.00029041,2]
[425933454,1782037888000,-500.0,0.00029041,2]
[425933442,1782037888000,-500.0,0.00029041,2]
[425933455,1782037888000,-500.0,0.00029041,2]
[425933447,1782037888000,-500.0,0.00029041,2]
[425933458,1782037888000,-500.0,0.00029041,2]
[425933451,1782037888000,-527.08,0.00029041,2]
[425933450,1782037888000,-500.0,0.00029041,2]
[425933452,1782037888000,-500.0,0.00029041,2]
[425933457,1782037888000,-426.7669005,0.00029041,2]
[425933467,1782037888000,-512.6,0.00029041,2]
[425933459,1782037888000,-500.0,0.00029041,2]
[425933461,1782037888000,-500.0,0.00029041,2]
[425933462,1782037888000,-500.0,0.00029041,2]
[425933463,1782037888000,-671.4,0.00029041,2]
[425933464,1782037888000,-500.0,0.00029041,2]
[425933466,1782037888000,-508.75,0.00029041,2]
[425933465,1782037888000,-672.23,0.00029041,2]
[425933468,1782037888000,-500.0,0.00029041,2]
[425933469,1782037888000,-500.0,0.00029041,2]
[425933471,1782037888000,-1403.38,0.00029041,2]
[425933470,1782037888000,-665.42,0.00029041,2]
[425933481,1782037888000,-500.0,0.00029041,2]
[425933460,1782037888000,-500.0,0.00029041,2]
[425933443,1782037888000,-567.82,0.00029041,2]
[425933420,1782037888000,-529.47,0.00029041,2]
[425933444,1782037888000,-500.0,0.00029041,2]
[425933482,1782037888000,-705.26,0.00029041,2]
[425933419,1782037888000,-500.0,0.00029041,2]
[425933418,1782037888000,-500.0,0.00029041,2]
[425933417,1782037888000,-500.0,0.00029041,2]
[425933421,1782037888000,-500.0,0.00029041,2]
[425933423,1782037888000,-500.0,0.00029041,2]
[425933422,1782037888000,-533.23,0.00029041,2]
[425933430,1782037888000,-500.0,0.00029041,2]
[425933428,1782037888000,-500.0,0.00029041,2]
[425933426,1782037888000,-714.98,0.00029041,2]
[425933424,1782037888000,-500.0,0.00029041,2]
[425933429,1782037888000,-500.0,0.00029041,2]
[425933441,1782037888000,-612.0,0.00029041,2]
[425933432,1782037888000,-1024.95,0.00029041,2]
[425933431,1782037888000,-593.86,0.00029041,2]
[425933433,1782037888000,-500.0,0.00029041,2]
[425933427,1782037888000,-605.51232228,0.00029041,2]
[425933434,1782037888000,-500.0,0.00029041,2]
[425933437,1782037888000,-722.68,0.00029041,2]
[425933436,1782037888000,-500.0,0.00029041,2]
[425933439,1782037888000,-500.0,0.00029041,2]
[425933445,1782037888000,-500.0,0.00029041,2]
[425933438,1782037888000,-398.19353032,0.00029041,2]
[425933435,1782037888000,-520.41,0.00029041,2]
[425933446,1782037888000,-500.0,0.00029041,2]
[425933440,1782037888000,-500.0,0.00029041,2]
[425933425,1782037888000,-509.07,0.00029041,2]
[425933483,1782037888000,-153.89029308,0.00029041,2]
[425933515,1782037888000,-683.19,0.00029041,2]
[425933474,1782037888000,-613.31,0.00029041,2]
[425933511,1782037888000,-500.0,0.00029041,2]
[425933517,1782037888000,-973.68,0.00029041,2]
[425933508,1782037888000,-500.0,0.00029041,2]
[425933518,1782037888000,-500.0,0.00029041,2]
[425933506,1782037888000,-500.0,0.00029041,2]
[425933513,1782037888000,-500.0,0.00029041,2]
[425933510,1782037888000,-500.0,0.00029041,2]
[425933534,1782037888000,-500.0,0.00029041,2]
[425933512,1782037888000,-500.0,0.00029041,2]
[425933516,1782037888000,-500.0,0.00029041,2]
[425933514,1782037888000,-338.45475444,0.00029041,2]
[425933519,1782037888000,-246.14893503,0.00029041,2]
[425933509,1782037888000,-500.0,0.00029041,2]
[425933521,1782037888000,-152.82369895,0.00029041,2]
[425933523,1782037888000,-509.25,0.00029041,2]
[425933522,1782037888000,-500.0,0.00029041,2]
[425933520,1782037888000,-529.79,0.00029041,2]
[425933524,1782037888000,-4661.92,0.00029041,2]
[425933528,1782037888000,-500.0,0.00029041,2]